[Event "Early-Titled-Tuesday-Blitz-April-02-2024"]
[Site "Chess.com"]
[Date "2024.04.02"]
[Round "9"]
[White "manitodeplomo"]
[Black "SaiAgni_98"]
[Result "0-1"]
[WhiteElo "2638"]
[BlackElo "2529"]
[TimeControl "180+1"]
[EndTime "9:46:27 PDT"]
[Termination "SaiAgni_98 won by resignation"]

1. d4 {[%clk 0:03:00.9]} 1... d5 {[%clk 0:02:58.3]} 2. c4 {[%clk 0:03:00.2]}
2... c6 {[%clk 0:02:58.5]} 3. Nf3 {[%clk 0:02:59.5]} 3... Nf6 {[%clk 0:02:58.8]}
4. Nc3 {[%clk 0:02:56]} 4... e6 {[%clk 0:02:59.1]} 5. Bg5 {[%clk 0:02:55.5]}
5... Nbd7 {[%clk 0:02:58.2]} 6. e3 {[%clk 0:02:55]} 6... Be7 {[%clk 0:02:58.7]}
7. Qc2 {[%clk 0:02:53.5]} 7... h6 {[%clk 0:02:58.1]} 8. Bh4 {[%clk 0:02:50.5]}
8... O-O {[%clk 0:02:58.1]} 9. O-O-O {[%clk 0:02:50.1]} 9... dxc4 {[%clk
0:02:54.2]} 10. Bxc4 {[%clk 0:02:49.7]} 10... b5 {[%clk 0:02:54.3]} 11. Bd3
{[%clk 0:02:49.5]} 11... Qa5 {[%clk 0:02:48]} 12. Kb1 {[%clk 0:02:48.1]} 12...
Ba6 {[%clk 0:02:29.9]} 13. Ne4 {[%clk 0:02:29.2]} 13... Nd5 {[%clk 0:02:09.4]}
14. Bxe7 {[%clk 0:02:22.3]} 14... Nxe7 {[%clk 0:02:10.3]} 15. Nc5 {[%clk
0:02:21]} 15... Rfd8 {[%clk 0:01:45.3]} 16. Rc1 {[%clk 0:01:56.6]} 16... Rac8
{[%clk 0:01:28.8]} 17. Nxd7 {[%clk 0:01:16.7]} 17... Rxd7 {[%clk 0:01:28.9]} 18.
Ne5 {[%clk 0:01:17.3]} 18... Rdc7 {[%clk 0:01:19.5]} 19. Qc5 {[%clk 0:01:15.3]}
19... Nd5 {[%clk 0:01:13.2]} 20. Be4 {[%clk 0:01:11.6]} 20... Bb7 {[%clk
0:01:08.6]} 21. Nd3 {[%clk 0:01:06.2]} 21... Nb6 {[%clk 0:01:01.5]} 22. Qb4
{[%clk 0:01:00.4]} 22... Qxb4 {[%clk 0:00:50.2]} 23. Nxb4 {[%clk 0:01:01.3]}
23... Nc4 {[%clk 0:00:51]} 24. Rc2 {[%clk 0:00:52.6]} 24... c5 {[%clk
0:00:46.1]} 25. Bxb7 {[%clk 0:00:51.1]} 25... Rxb7 {[%clk 0:00:47]} 26. dxc5
{[%clk 0:00:48.1]} 26... Rxc5 {[%clk 0:00:47.2]} 27. Rd1 {[%clk 0:00:46.9]}
27... Rc8 {[%clk 0:00:39.2]} 28. a3 {[%clk 0:00:34.5]} 28... Rbc7 {[%clk
0:00:37.7]} 29. Ka2 {[%clk 0:00:30.6]} 29... a5 {[%clk 0:00:38]} 30. Nd3 {[%clk
0:00:30.2]} 30... Nb6 {[%clk 0:00:29.6]} 31. Rxc7 {[%clk 0:00:28.8]} 31... Rxc7
{[%clk 0:00:30.5]} 32. Rc1 {[%clk 0:00:27.9]} 32... Rd7 {[%clk 0:00:26.9]} 33.
Ne5 {[%clk 0:00:20.9]} 33... Rd5 {[%clk 0:00:23.5]} 34. Nf3 {[%clk 0:00:16.2]}
34... f6 {[%clk 0:00:20.8]} 35. Kb1 {[%clk 0:00:14.8]} 35... Nc4 {[%clk
0:00:20.1]} 36. Rc2 {[%clk 0:00:13.2]} 36... Rd1+ {[%clk 0:00:19.9]} 37. Ka2
{[%clk 0:00:13.1]} 37... a4 {[%clk 0:00:19.5]} 38. Nd4 {[%clk 0:00:12.8]} 38...
Na5 {[%clk 0:00:14]} 39. b4 {[%clk 0:00:04.4]} 39... axb3+ {[%clk 0:00:14.1]}
40. Nxb3 {[%clk 0:00:04.5]} 40... Nxb3 {[%clk 0:00:13.4]} 41. Kxb3 {[%clk
0:00:04.4]} 41... Kf7 {[%clk 0:00:13.8]} 42. Kb4 {[%clk 0:00:04]} 42... Rb1+
{[%clk 0:00:14.1]} 43. Kc5 {[%clk 0:00:04]} 43... Kg6 {[%clk 0:00:14.6]} 44. f3
{[%clk 0:00:03.7]} 44... e5 {[%clk 0:00:14.9]} 45. e4 {[%clk 0:00:04.1]} 45...
Rb3 {[%clk 0:00:15]} 46. Ra2 {[%clk 0:00:03.7]} 46... h5 {[%clk 0:00:15.2]} 47.
Kb6 {[%clk 0:00:03.8]} 47... Kg5 {[%clk 0:00:15.6]} 48. h3 {[%clk 0:00:03.7]}
48... h4 {[%clk 0:00:15.8]} 49. Ka5 {[%clk 0:00:04.6]} 49... Kf4 {[%clk
0:00:16.4]} 50. a4 {[%clk 0:00:04.5]} 50... bxa4 {[%clk 0:00:17.3]} 51. Kxa4
{[%clk 0:00:05]} 51... Re3 {[%clk 0:00:17.6]} 52. Kb5 {[%clk 0:00:05.2]} 52...
Kg3 {[%clk 0:00:18]} 53. Kc5 {[%clk 0:00:05.6]} 53... Rd3 {[%clk 0:00:17.6]} 54.
Kc4 {[%clk 0:00:05.4]} 54... Rd4+ {[%clk 0:00:17.5]} 55. Kc5 {[%clk 0:00:05.9]}
55... Rd1 {[%clk 0:00:18.4]} 56. Ra7 {[%clk 0:00:05.5]} 56... g5 {[%clk
0:00:18.3]} 57. Rf7 {[%clk 0:00:06.1]} 57... Kxg2 {[%clk 0:00:18.5]} 58. Rxf6
{[%clk 0:00:06.4]} 58... Kxh3 {[%clk 0:00:19.2]} 59. Rf5 {[%clk 0:00:06.2]}
59... g4 {[%clk 0:00:18.3]} 60. fxg4 {[%clk 0:00:05.7]} 60... Kxg4 {[%clk
0:00:19.2]} 61. Rxe5 {[%clk 0:00:06.3]} 61... h3 {[%clk 0:00:19.8]} 62. Re8
{[%clk 0:00:06.3]} 62... h2 {[%clk 0:00:20.4]} 63. Rg8+ {[%clk 0:00:06.4]} 63...
Kf4 {[%clk 0:00:20.8]} 64. Rh8 {[%clk 0:00:03.9]} 64... h1=Q {[%clk 0:00:20.7]}
65. Rxh1 {[%clk 0:00:03.5]} 65... Rxh1 {[%clk 0:00:21.6]} 66. e5 {[%clk
0:00:03.2]} 66... Kxe5 {[%clk 0:00:22.5]} 0-1

[Event "Early-Titled-Tuesday-Blitz-April-02-2024"]
[Site "Chess.com"]
[Date "2024.04.02"]
[Round "9"]
[White "ketster"]
[Black "toninhojit"]
[Result "1/2-1/2"]
[WhiteElo "2599"]
[BlackElo "2499"]
[TimeControl "180+1"]
[EndTime "9:46:30 PDT"]
[Termination "Game drawn by stalemate"]

1. c4 {[%clk 0:03:00.9]} 1... c5 {[%clk 0:02:59.2]} 2. Nf3 {[%clk 0:02:59.7]}
2... Nc6 {[%clk 0:02:55.7]} 3. g3 {[%clk 0:02:58.1]} 3... e5 {[%clk 0:02:55.4]}
4. Bg2 {[%clk 0:02:57]} 4... g6 {[%clk 0:02:56]} 5. Nc3 {[%clk 0:02:56]} 5...
Bg7 {[%clk 0:02:56.6]} 6. O-O {[%clk 0:02:54.7]} 6... Nge7 {[%clk 0:02:56.4]} 7.
e3 {[%clk 0:02:53.8]} 7... O-O {[%clk 0:02:57]} 8. d3 {[%clk 0:02:52.6]} 8... d6
{[%clk 0:02:56.7]} 9. Rb1 {[%clk 0:02:47.4]} 9... h6 {[%clk 0:02:56.8]} 10. a3
{[%clk 0:02:47.8]} 10... f5 {[%clk 0:02:57.2]} 11. Nd2 {[%clk 0:02:46.7]} 11...
Be6 {[%clk 0:02:56]} 12. b4 {[%clk 0:02:46.5]} 12... Rb8 {[%clk 0:02:54.7]} 13.
Nd5 {[%clk 0:02:42.2]} 13... Qd7 {[%clk 0:02:52.7]} 14. f4 {[%clk 0:02:41.3]}
14... Bf7 {[%clk 0:02:51.7]} 15. Bb2 {[%clk 0:02:36.2]} 15... cxb4 {[%clk
0:02:49.9]} 16. Nxb4 {[%clk 0:02:21.7]} 16... Nxb4 {[%clk 0:02:41.2]} 17. axb4
{[%clk 0:02:22.6]} 17... Rfd8 {[%clk 0:02:11.3]} 18. Qe2 {[%clk 0:02:06.4]}
18... exf4 {[%clk 0:01:43.9]} 19. Bxg7 {[%clk 0:01:58.5]} 19... Kxg7 {[%clk
0:01:44.8]} 20. exf4 {[%clk 0:01:46.6]} 20... d5 {[%clk 0:01:45.7]} 21. c5
{[%clk 0:01:37.7]} 21... a6 {[%clk 0:01:32.8]} 22. Nf3 {[%clk 0:01:28.4]} 22...
Nc6 {[%clk 0:01:27.5]} 23. Ne5 {[%clk 0:01:21.8]} 23... Qe6 {[%clk 0:01:24.8]}
24. Rfe1 {[%clk 0:01:17.8]} 24... Re8 {[%clk 0:01:24.6]} 25. Qb2 {[%clk
0:01:16]} 25... Qf6 {[%clk 0:01:19.4]} 26. d4 {[%clk 0:01:09.5]} 26... Be6
{[%clk 0:01:00.8]} 27. Qc3 {[%clk 0:01:03]} 27... Nxe5 {[%clk 0:01:01.2]} 28.
Rxe5 {[%clk 0:00:59.3]} 28... Bf7 {[%clk 0:01:01.3]} 29. Rbe1 {[%clk 0:00:59.2]}
29... Rxe5 {[%clk 0:00:47.7]} 30. dxe5 {[%clk 0:00:56.2]} 30... Qe6 {[%clk
0:00:48.2]} 31. Rd1 {[%clk 0:00:47.9]} 31... Rd8 {[%clk 0:00:48.2]} 32. Qd4
{[%clk 0:00:48.2]} 32... Kg8 {[%clk 0:00:42.6]} 33. h3 {[%clk 0:00:45.5]} 33...
Qc6 {[%clk 0:00:42]} 34. Kh2 {[%clk 0:00:44.6]} 34... Be6 {[%clk 0:00:42.6]} 35.
Bf1 {[%clk 0:00:43.4]} 35... Qa4 {[%clk 0:00:41.5]} 36. Rb1 {[%clk 0:00:42.3]}
36... a5 {[%clk 0:00:39.2]} 37. Bg2 {[%clk 0:00:34.3]} 37... Kg7 {[%clk
0:00:30.9]} 38. Qd2 {[%clk 0:00:16]} 38... axb4 {[%clk 0:00:19.4]} 39. Rxb4
{[%clk 0:00:15.9]} 39... Qc6 {[%clk 0:00:18.3]} 40. Rb6 {[%clk 0:00:14.8]} 40...
Qc8 {[%clk 0:00:13.9]} 41. Qb2 {[%clk 0:00:13]} 41... Kf7 {[%clk 0:00:08.4]} 42.
Rxb7+ {[%clk 0:00:11.9]} 42... Rd7 {[%clk 0:00:09]} 43. Rxd7+ {[%clk 0:00:09.2]}
43... Qxd7 {[%clk 0:00:09.6]} 44. Qb6 {[%clk 0:00:08.9]} 44... d4 {[%clk
0:00:09]} 45. c6 {[%clk 0:00:08.6]} 45... Qc8 {[%clk 0:00:06.7]} 46. Qxd4 {[%clk
0:00:08.7]} 46... Ke8 {[%clk 0:00:06]} 47. Qd6 {[%clk 0:00:08.6]} 47... Kf7
{[%clk 0:00:05.1]} 48. c7 {[%clk 0:00:07.5]} 48... Ke8 {[%clk 0:00:03.9]} 49.
Bc6+ {[%clk 0:00:07.5]} 49... Kf7 {[%clk 0:00:03.6]} 50. Qd8 {[%clk 0:00:07.4]}
50... g5 {[%clk 0:00:03]} 51. fxg5 {[%clk 0:00:05]} 51... hxg5 {[%clk
0:00:03.9]} 52. h4 {[%clk 0:00:04.1]} 52... f4 {[%clk 0:00:02.5]} 53. Be8+
{[%clk 0:00:04]} 53... Kg7 {[%clk 0:00:01.7]} 54. Qxg5+ {[%clk 0:00:04]} 54...
Kf8 {[%clk 0:00:01.8]} 55. Bc6 {[%clk 0:00:03]} 55... fxg3+ {[%clk 0:00:02.7]}
56. Kxg3 {[%clk 0:00:03.2]} 56... Qxc7 {[%clk 0:00:03.6]} 57. Qf6+ {[%clk
0:00:03.6]} 57... Qf7 {[%clk 0:00:03.4]} 58. Bf3 {[%clk 0:00:03]} 58... Qxf6
{[%clk 0:00:02.7]} 59. exf6 {[%clk 0:00:03.5]} 59... Kf7 {[%clk 0:00:03.6]} 60.
Bg4 {[%clk 0:00:02.9]} 60... Kxf6 {[%clk 0:00:03.6]} 61. Bxe6 {[%clk 0:00:02.9]}
61... Kxe6 {[%clk 0:00:04.5]} 62. Kg4 {[%clk 0:00:03.8]} 62... Kf7 {[%clk
0:00:05.4]} 63. Kg5 {[%clk 0:00:04.7]} 63... Kg8 {[%clk 0:00:06.3]} 64. Kh6
{[%clk 0:00:05.2]} 64... Kh8 {[%clk 0:00:07.2]} 65. Kg6 {[%clk 0:00:06.1]} 65...
Kg8 {[%clk 0:00:08.1]} 66. h5 {[%clk 0:00:07]} 66... Kh8 {[%clk 0:00:09]} 67. h6
{[%clk 0:00:07.9]} 67... Kg8 {[%clk 0:00:09.9]} 68. h7+ {[%clk 0:00:08.8]} 68...
Kh8 {[%clk 0:00:10.8]} 69. Kh6 {[%clk 0:00:08.4]} 1/2-1/2

[Event "Early-Titled-Tuesday-Blitz-April-02-2024"]
[Site "Chess.com"]
[Date "2024.04.02"]
[Round "9"]
[White "MagnusCarlsen"]
[Black "TigrVShlyape"]
[Result "0-1"]
[WhiteElo "3216"]
[BlackElo "2941"]
[TimeControl "180+1"]
[EndTime "9:46:39 PDT"]
[Termination "TigrVShlyape won by resignation"]

1. e4 {[%clk 0:02:59.8]} 1... e5 {[%clk 0:02:59.9]} 2. Nf3 {[%clk 0:02:59.4]}
2... Nc6 {[%clk 0:03:00.2]} 3. Bb5 {[%clk 0:02:59.3]} 3... f5 {[%clk 0:02:59.9]}
4. d3 {[%clk 0:02:53.6]} 4... fxe4 {[%clk 0:02:58.8]} 5. dxe4 {[%clk 0:02:54.5]}
5... Nf6 {[%clk 0:02:59.1]} 6. O-O {[%clk 0:02:52.9]} 6... Bc5 {[%clk
0:02:58.9]} 7. Bxc6 {[%clk 0:02:52.7]} 7... bxc6 {[%clk 0:02:55.6]} 8. Nxe5
{[%clk 0:02:53.3]} 8... O-O {[%clk 0:02:53.2]} 9. Nd2 {[%clk 0:02:44.3]} 9... a5
{[%clk 0:02:45.5]} 10. Nd3 {[%clk 0:02:43.9]} 10... Ba7 {[%clk 0:02:43.4]} 11.
e5 {[%clk 0:02:42.9]} 11... Nd5 {[%clk 0:02:40.4]} 12. Ne4 {[%clk 0:02:34.9]}
12... d6 {[%clk 0:02:12.4]} 13. c4 {[%clk 0:02:34]} 13... Bf5 {[%clk 0:02:04]}
14. Ng3 {[%clk 0:02:26.2]} 14... Bxd3 {[%clk 0:02:02.1]} 15. Qxd3 {[%clk
0:02:27.1]} 15... Nb4 {[%clk 0:01:59.3]} 16. Qe4 {[%clk 0:02:21.9]} 16... dxe5
{[%clk 0:01:56.8]} 17. Be3 {[%clk 0:02:22.5]} 17... Bxe3 {[%clk 0:01:47.6]} 18.
fxe3 {[%clk 0:02:23.4]} 18... Qd3 {[%clk 0:01:40.5]} 19. b3 {[%clk 0:01:01.1]}
19... Qxe4 {[%clk 0:01:30.2]} 20. Nxe4 {[%clk 0:01:02]} 20... Rxf1+ {[%clk
0:01:29.4]} 21. Rxf1 {[%clk 0:00:50.8]} 21... Nxa2 {[%clk 0:01:24.5]} 22. Ra1
{[%clk 0:00:51.2]} 22... Nb4 {[%clk 0:01:23.5]} 23. Kf2 {[%clk 0:00:51.8]} 23...
h6 {[%clk 0:01:11.8]} 24. Ke2 {[%clk 0:00:51.9]} 24... Kf7 {[%clk 0:01:11.1]}
25. g4 {[%clk 0:00:52.6]} 25... Ke7 {[%clk 0:01:05.1]} 26. h4 {[%clk 0:00:53]}
26... Nc2 {[%clk 0:01:03.9]} 27. Ra4 {[%clk 0:00:47.3]} 27... g6 {[%clk
0:00:57.7]} 28. Kd2 {[%clk 0:00:42.2]} 28... Nb4 {[%clk 0:00:56.8]} 29. Kc3
{[%clk 0:00:42.6]} 29... c5 {[%clk 0:00:49]} 30. Nxc5 {[%clk 0:00:40.4]} 30...
Nc6 {[%clk 0:00:49.3]} 31. Kd3 {[%clk 0:00:40.3]} 31... Rb8 {[%clk 0:00:45]} 32.
Ra3 {[%clk 0:00:36.7]} 32... Kd6 {[%clk 0:00:43.1]} 33. Ne4+ {[%clk 0:00:36.7]}
33... Ke6 {[%clk 0:00:43.3]} 34. Ke2 {[%clk 0:00:34.7]} 34... h5 {[%clk
0:00:37.8]} 35. g5 {[%clk 0:00:31.7]} 35... Kf5 {[%clk 0:00:35]} 36. Kf3 {[%clk
0:00:26.7]} 36... Rd8 {[%clk 0:00:34.9]} 37. Ng3+ {[%clk 0:00:25.8]} 37... Ke6
{[%clk 0:00:34.5]} 38. Ke2 {[%clk 0:00:26.4]} 38... Rb8 {[%clk 0:00:28.5]} 39.
Ne4 {[%clk 0:00:23.4]} 39... Kf5 {[%clk 0:00:28.1]} 40. Nf6 {[%clk 0:00:23.9]}
40... e4 {[%clk 0:00:19]} 41. Kf2 {[%clk 0:00:19.1]} 41... Rd8 {[%clk
0:00:11.9]} 42. Ra2 {[%clk 0:00:19.1]} 42... Rd3 {[%clk 0:00:11.3]} 43. Rb2
{[%clk 0:00:19.2]} 43... Ne5 {[%clk 0:00:10.6]} 44. Nd5 {[%clk 0:00:17.7]} 44...
c6 {[%clk 0:00:08.7]} 45. Ne7+ {[%clk 0:00:11.7]} 45... Ke6 {[%clk 0:00:08.6]}
46. Nc8 {[%clk 0:00:11.3]} 46... Ng4+ {[%clk 0:00:08.6]} 47. Kg3 {[%clk
0:00:11.6]} 47... Ke5 {[%clk 0:00:08.7]} 48. Re2 {[%clk 0:00:10.5]} 48... Rxe3+
{[%clk 0:00:08.5]} 49. Rxe3 {[%clk 0:00:10.7]} 49... Nxe3 {[%clk 0:00:08.5]} 50.
Na7 {[%clk 0:00:10.6]} 50... Nf5+ {[%clk 0:00:08.8]} 51. Kf2 {[%clk 0:00:11.2]}
51... Ne7 {[%clk 0:00:08.5]} 52. Ke3 {[%clk 0:00:09]} 52... c5 {[%clk
0:00:08.9]} 53. Ke2 {[%clk 0:00:05.9]} 53... Kf4 {[%clk 0:00:08.5]} 54. Kf2
{[%clk 0:00:06.3]} 54... e3+ {[%clk 0:00:08.2]} 55. Ke2 {[%clk 0:00:06.6]} 55...
Ke4 {[%clk 0:00:08.5]} 56. Nb5 {[%clk 0:00:06.4]} 56... Nf5 {[%clk 0:00:08.6]}
57. Nc3+ {[%clk 0:00:06.7]} 57... Kf4 {[%clk 0:00:08.6]} 58. Nd5+ {[%clk
0:00:07.6]} 58... Kg4 {[%clk 0:00:08.9]} 59. Nf6+ {[%clk 0:00:05.4]} 59... Kxh4
{[%clk 0:00:09]} 60. Ne4 {[%clk 0:00:06.3]} 60... Kg4 {[%clk 0:00:08.8]} 61.
Nxc5 {[%clk 0:00:06.4]} 61... h4 {[%clk 0:00:09.1]} 62. Nd3 {[%clk 0:00:05.6]}
62... h3 {[%clk 0:00:09.1]} 63. Ne5+ {[%clk 0:00:05.9]} 63... Kg3 {[%clk
0:00:09]} 64. Nf3 {[%clk 0:00:06.8]} 64... Nd4+ {[%clk 0:00:08.4]} 65. Nxd4
{[%clk 0:00:07.1]} 65... h2 {[%clk 0:00:09]} 66. Kxe3 {[%clk 0:00:08]} 66...
h1=Q {[%clk 0:00:08.9]} 67. c5 {[%clk 0:00:08.9]} 67... Qc1+ {[%clk 0:00:08.3]}
0-1

[Event "Early-Titled-Tuesday-Blitz-April-02-2024"]
[Site "Chess.com"]
[Date "2024.04.02"]
[Round "9"]
[White "LeoWin2012"]
[Black "m_ezat"]
[Result "1/2-1/2"]
[WhiteElo "2332"]
[BlackElo "2545"]
[TimeControl "180+1"]
[EndTime "9:46:40 PDT"]
[Termination "Game drawn - insufficient material"]

1. c4 {[%clk 0:02:54.5]} 1... Nf6 {[%clk 0:02:58.3]} 2. Nc3 {[%clk 0:02:54]}
2... e5 {[%clk 0:02:58.5]} 3. g3 {[%clk 0:02:53.5]} 3... Bb4 {[%clk 0:02:57.5]}
4. Bg2 {[%clk 0:02:49.1]} 4... O-O {[%clk 0:02:56]} 5. e3 {[%clk 0:02:43.8]}
5... Bxc3 {[%clk 0:02:54.3]} 6. dxc3 {[%clk 0:02:42]} 6... d6 {[%clk 0:02:54.5]}
7. Ne2 {[%clk 0:02:34.3]} 7... a5 {[%clk 0:02:54.4]} 8. O-O {[%clk 0:02:32.1]}
8... a4 {[%clk 0:02:54.1]} 9. h3 {[%clk 0:02:27.3]} 9... Be6 {[%clk 0:02:48.5]}
10. c5 {[%clk 0:02:20.7]} 10... d5 {[%clk 0:02:44.8]} 11. f4 {[%clk 0:02:15.6]}
11... Nc6 {[%clk 0:02:25.5]} 12. f5 {[%clk 0:02:08.3]} 12... Bd7 {[%clk
0:02:17.1]} 13. g4 {[%clk 0:02:08.5]} 13... Qe7 {[%clk 0:02:13.8]} 14. Ng3
{[%clk 0:01:58.8]} 14... h6 {[%clk 0:02:08.3]} 15. e4 {[%clk 0:01:52]} 15...
Qxc5+ {[%clk 0:02:07.5]} 16. Kh1 {[%clk 0:01:47.9]} 16... d4 {[%clk 0:02:05.6]}
17. g5 {[%clk 0:01:43.6]} 17... hxg5 {[%clk 0:02:04.9]} 18. Bxg5 {[%clk
0:01:41.3]} 18... Nh7 {[%clk 0:02:00.3]} 19. Bd2 {[%clk 0:01:31.3]} 19... f6
{[%clk 0:01:59.9]} 20. Qg4 {[%clk 0:01:26.2]} 20... Be8 {[%clk 0:01:47.7]} 21.
Ne2 {[%clk 0:01:21.2]} 21... a3 {[%clk 0:01:34.1]} 22. b4 {[%clk 0:01:19.3]}
22... Qe7 {[%clk 0:01:30.6]} 23. Bf3 {[%clk 0:01:17.8]} 23... dxc3 {[%clk
0:01:25.6]} 24. Nxc3 {[%clk 0:01:10.3]} 24... Nd4 {[%clk 0:01:24.1]} 25. Nd5
{[%clk 0:01:02.1]} 25... Qf7 {[%clk 0:01:24]} 26. Be3 {[%clk 0:00:55]} 26... c6
{[%clk 0:01:22.3]} 27. Nb6 {[%clk 0:00:51.4]} 27... Rd8 {[%clk 0:01:21.5]} 28.
Rad1 {[%clk 0:00:45.5]} 28... Ng5 {[%clk 0:01:08]} 29. Bxg5 {[%clk 0:00:38.9]}
29... fxg5 {[%clk 0:01:07.8]} 30. Qxg5 {[%clk 0:00:36.4]} 30... Qf6 {[%clk
0:01:06.9]} 31. Qg4 {[%clk 0:00:35.4]} 31... Bf7 {[%clk 0:01:05.7]} 32. Rg1
{[%clk 0:00:31]} 32... Bxa2 {[%clk 0:01:04.5]} 33. Ra1 {[%clk 0:00:27.3]} 33...
Bf7 {[%clk 0:00:41.1]} 34. Rxa3 {[%clk 0:00:26.6]} 34... Qh6 {[%clk 0:00:33.7]}
35. Bd1 {[%clk 0:00:26]} 35... Kh8 {[%clk 0:00:30]} 36. Rag3 {[%clk 0:00:25.8]}
36... Rg8 {[%clk 0:00:29.8]} 37. Kg2 {[%clk 0:00:20.5]} 37... g5 {[%clk
0:00:28.1]} 38. Rh1 {[%clk 0:00:18]} 38... c5 {[%clk 0:00:25.4]} 39. bxc5 {[%clk
0:00:17.8]} 39... Ra8 {[%clk 0:00:24.7]} 40. h4 {[%clk 0:00:14.3]} 40... Ra2+
{[%clk 0:00:23.9]} 41. Kg1 {[%clk 0:00:14.8]} 41... gxh4 {[%clk 0:00:22.1]} 42.
Rxh4 {[%clk 0:00:14.6]} 42... Rxg4 {[%clk 0:00:21.8]} 43. Rxh6+ {[%clk
0:00:14.7]} 43... Kg7 {[%clk 0:00:21.6]} 44. Rxg4+ {[%clk 0:00:11.1]} 44... Kxh6
{[%clk 0:00:21.7]} 45. Kf1 {[%clk 0:00:08.9]} 45... Ra1 {[%clk 0:00:21.3]} 46.
Ke1 {[%clk 0:00:08.1]} 46... Rxd1+ {[%clk 0:00:21.5]} 47. Kxd1 {[%clk
0:00:08.1]} 47... Bh5 {[%clk 0:00:22.2]} 48. Nd7 {[%clk 0:00:06.3]} 48... Bxg4+
{[%clk 0:00:22]} 49. Kd2 {[%clk 0:00:06.7]} 49... Nc6 {[%clk 0:00:17.9]} 50. Ke3
{[%clk 0:00:06.8]} 50... Kg7 {[%clk 0:00:17.9]} 51. Nb6 {[%clk 0:00:06]} 51...
Bh5 {[%clk 0:00:17]} 52. Nc4 {[%clk 0:00:06.2]} 52... Kf6 {[%clk 0:00:16.1]} 53.
Nd6 {[%clk 0:00:06.5]} 53... Na5 {[%clk 0:00:14.5]} 54. Kd3 {[%clk 0:00:06.3]}
54... Bf7 {[%clk 0:00:13.8]} 55. Kc3 {[%clk 0:00:06.3]} 55... Ke7 {[%clk
0:00:11.8]} 56. Kb4 {[%clk 0:00:06.6]} 56... b6 {[%clk 0:00:12]} 57. Nc8+ {[%clk
0:00:04.6]} 57... Kd8 {[%clk 0:00:11.4]} 58. Nxb6 {[%clk 0:00:05.5]} 58... Nc6+
{[%clk 0:00:11.7]} 59. Kc3 {[%clk 0:00:05.6]} 59... Kc7 {[%clk 0:00:11.8]} 60.
Nd5+ {[%clk 0:00:05.2]} 60... Kd7 {[%clk 0:00:05.4]} 61. Nf6+ {[%clk 0:00:05.3]}
61... Ke7 {[%clk 0:00:05.3]} 62. Nd5+ {[%clk 0:00:06.2]} 62... Kf8 {[%clk
0:00:05.4]} 63. Kc4 {[%clk 0:00:05.8]} 63... Ne7 {[%clk 0:00:05.2]} 64. f6
{[%clk 0:00:04.1]} 64... Nxd5 {[%clk 0:00:05.1]} 65. exd5 {[%clk 0:00:04.7]}
65... Ke8 {[%clk 0:00:05.6]} 66. c6 {[%clk 0:00:04.8]} 66... Kd8 {[%clk
0:00:05.7]} 67. Kc5 {[%clk 0:00:05]} 67... e4 {[%clk 0:00:06.1]} 68. Kd4 {[%clk
0:00:05.4]} 68... e3 {[%clk 0:00:05.7]} 69. Kxe3 {[%clk 0:00:05.7]} 69... Bxd5
{[%clk 0:00:06]} 70. Kd4 {[%clk 0:00:06.1]} 70... Bxc6 {[%clk 0:00:06.3]} 71. f7
{[%clk 0:00:06.2]} 71... Ke7 {[%clk 0:00:05.4]} 72. f8=Q+ {[%clk 0:00:06.4]}
72... Kxf8 {[%clk 0:00:06.3]} 1/2-1/2